bitfinex/quotes_BTCUSD_20250204
["timestamp","ask_amount","ask_price","bid_price","bid_amount"]
[1738699157280,0.35845306,99096.0,99095.0,0.0001071]
[1738699158104,1.85845306,99096.0,99095.0,0.0001071]
[1738699158307,2.00845306,99096.0,99095.0,0.0001071]
[1738699158512,0.1514,99075.0,99074.0,0.0002247]
[1738699158728,0.27678506,99075.0,99074.0,0.0002247]
[1738699159134,1.77678506,99075.0,99074.0,0.0002247]
[1738699159345,1.90378506,99075.0,99074.0,0.0002247]
[1738699159547,1.93324862,99075.0,99074.0,0.0002247]
[1738699160289,1.95293892,99075.0,99074.0,0.0002247]
[1738699160885,1.91955382,99075.0,99074.0,0.0002247]
[1738699161599,1.76815382,99075.0,99074.0,0.0002247]
[1738699161803,1.68349195,99075.0,99074.0,0.0002247]
[1738699161922,1.83489195,99075.0,99074.0,0.0002247]
[1738699162125,0.37686352,99075.0,99074.0,0.0002247]
[1738699162377,0.29586352,99075.0,99074.0,0.0002247]
[1738699162600,0.30742352,99075.0,99074.0,0.0002247]
[1738699163025,0.29586352,99075.0,99074.0,0.0002247]
[1738699163155,0.05363846,99075.0,99074.0,0.0002247]
[1738699163356,0.02250765,99075.0,99074.0,0.0002247]
[1738699163631,0.01094765,99075.0,99074.0,0.0002247]
[1738699163827,0.01164,99089.0,99076.0,0.151398]
[1738699163828,1.51164,99089.0,99076.0,0.151398]
[1738699164062,1.51164,99089.0,99074.0,0.0002247]
[1738699164245,1.49989061,99089.0,99074.0,0.0002247]
[1738699164443,1.45858128,99089.0,99074.0,0.0002247]
[1738699164655,0.31523914,99090.0,99074.0,0.0002247]
[1738699164861,0.10238506,99089.0,99074.0,0.0002247]
[1738699165064,0.31523914,99090.0,99074.0,0.0002247]
[1738699165266,0.151384,99086.0,99074.0,0.0002247]
[1738699165472,0.51707714,99090.0,99074.0,0.0002247]
[1738699165473,1.5,99088.0,99075.0,0.1514]
[1738699165678,0.151387,99084.0,99074.0,0.0002247]
[1738699165886,1.5,99088.0,99074.0,0.0002247]
[1738699165887,0.151389,99083.0,99074.0,0.0002247]
[1738699166105,1.5,99088.0,99075.0,0.201867]
[1738699166308,0.08078646,99105.0,99076.0,0.15260916]
[1738699166309,0.151362,99100.0,99076.0,0.15260916]
[1738699166512,0.151375,99092.0,99082.0,0.151388]
[1738699166730,0.151375,99092.0,99074.0,0.0002247]
[1738699166731,1.5,99092.0,99074.0,0.0002247]
[1738699167354,0.151377,99091.0,99074.0,0.00014616]
[1738699167562,1.5,99092.0,99074.0,0.00014616]
[1738699167767,0.151391,99081.0,99074.0,0.00014616]
[1738699167991,0.151395,99079.0,99074.0,0.00014616]
[1738699168197,0.31523914,99090.0,99074.0,0.00014616]
[1738699168198,0.1514,99075.0,99074.0,0.00014616]
[1738699168404,0.25378506,99075.0,99074.0,0.00014616]
[1738699168788,0.10238506,99075.0,99074.0,0.00014616]
[1738699168994,0.0813,99117.0,99086.0,0.151382]
[1738699168995,0.00022491,99096.0,99086.0,0.151382]
[1738699169213,0.00022491,99096.0,99067.0,0.000107]
[1738699169214,0.151463,99034.0,98964.0,0.0824]
[1738699169389,0.151542,98982.0,98981.0,0.00121151]
[1738699169589,0.1516,98944.0,98943.0,0.00121217]
[1738699169850,1.5,98982.0,98900.0,0.0163522]
[1738699169851,0.151607,98940.0,98934.0,0.00812186]
[1738699170152,0.151605,98942.0,98900.0,0.0163522]
[1738699170330,0.0044,98946.0,98915.0,0.00520815]
[1738699170854,1.5,98941.0,98940.0,0.151607]
[1738699171222,0.31523914,98950.0,98949.0,0.151593]
[1738699171397,0.01,98959.0,98953.0,0.202114]
[1738699171620,0.01,98963.0,98962.0,0.151573]
[1738699171821,1.81523914,98980.0,98942.0,0.202138]
[1738699172078,0.02045652,98983.0,98943.0,0.00121246]
[1738699172265,0.02045652,98983.0,98944.0,0.00121245]
[1738699172481,0.02485652,98983.0,98968.0,0.151562]
[1738699172673,0.0044,98983.0,98969.0,0.00121234]
[1738699172899,0.0044,98983.0,98940.0,0.00121232]
[1738699173087,0.0044,98983.0,98941.0,0.00121233]
[1738699173303,0.151597,98947.0,98915.0,0.0785]
[1738699173445,0.51730014,98980.0,98914.0,0.0497]
[1738699173446,0.00561147,98950.0,98924.0,0.202175]
[1738699173666,0.31523914,98940.0,98896.0,0.10423976]
[1738699173855,0.0044,98946.0,98912.0,0.202199]
[1738699174057,0.01,98947.0,98913.0,0.00121287]
[1738699174301,0.01,98947.0,98914.0,0.00121284]
[1738699174504,0.01,98958.0,98915.0,0.00121284]
[1738699174710,0.01,98959.0,98954.0,0.151585]
[1738699174906,0.01,98959.0,98916.0,0.202191]
[1738699174907,0.31523914,98960.0,98959.0,0.151577]
[1738699175109,0.01,98952.0,98914.0,0.15]
[1738699175307,0.01,98952.0,98919.0,0.202185]
[1738699175509,0.01,98952.0,98918.0,0.15]
[1738699175510,0.01,98952.0,98950.0,0.151591]
[1738699175711,0.01,98952.0,98920.0,0.00121278]
[1738699175921,0.01,98952.0,98919.0,0.00121278]
[1738699176257,0.01,98952.0,98909.0,0.0075918]
[1738699176258,0.0044,98951.0,98944.0,0.151599]
[1738699176399,0.0044,98951.0,98921.0,0.202181]
[1738699176761,0.045,98969.0,98919.0,0.202184]
[1738699176762,0.01,98933.0,98919.0,0.202184]
[1738699176951,0.0044,98939.0,98909.0,0.0075918]
[1738699176952,0.01,98926.0,98925.0,0.15163]
[1738699177463,0.0089,98924.0,98910.0,0.202204]
[1738699177652,0.0089,98924.0,98911.0,0.202201]
[1738699177858,0.0089,98924.0,98909.0,0.0075918]
[1738699178089,0.0089,98919.0,98909.0,0.0075918]
[1738699178267,0.0089,98917.0,98910.0,0.151653]
[1738699178491,0.0089,98917.0,98909.0,0.0075918]
[1738699178492,0.32413914,98921.0,98915.0,0.151643]
[1738699178668,0.0089,98910.0,98909.0,0.0075918]
[1738699179398,1.51451147,98910.0,98909.0,0.0075918]
[1738699179513,1.61568506,98910.0,98909.0,0.0075918]
[1738699179716,1.61568506,98910.0,98909.0,0.00461018]
[1738699180534,1.61568506,98910.0,98909.0,0.00471748]
[1738699181012,1.64988984,98910.0,98909.0,0.00471748]
[1738699181143,1.76568506,98910.0,98909.0,0.00471748]
[1738699181350,0.0133,98901.0,98882.0,0.0133851]
[1738699181551,0.0612,98886.0,98882.0,0.0133851]
[1738699181825,0.16358506,98886.0,98882.0,0.0133851]
[1738699182028,1.81527406,98886.0,98882.0,0.0133851]
[1738699182369,0.314994,98883.0,98882.0,0.0133851]
[1738699182570,0.41737906,98883.0,98882.0,0.0133851]
[1738699182958,0.165023,98864.0,98835.0,0.151767]
[1738699183106,0.11568506,98864.0,98836.0,0.08078646]
[1738699183309,0.11568506,98864.0,98826.0,0.08078646]
[1738699183488,0.10678506,98864.0,98836.0,0.202355]
[1738699183695,1.61568506,98864.0,98827.0,0.023]
[1738699183893,1.61568506,98864.0,98832.0,0.202363]
[1738699184098,0.0133,98864.0,98846.0,0.202334]
[1738699184411,0.0089,98864.0,98861.0,0.151728]
[1738699184612,0.0133,98864.0,98863.0,0.00199039]
[1738699184819,0.0133,98864.0,98863.0,7e-05]
[1738699185230,0.0044,98865.0,98863.0,7e-05]
[1738699185450,0.0089,98864.0,98863.0,7e-05]
[1738699185852,0.0133,98864.0,98863.0,7e-05]
[1738699186058,0.11568506,98864.0,98863.0,7e-05]
[1738699186393,1.66265497,98864.0,98863.0,7e-05]
[1738699186601,1.68321875,98864.0,98863.0,7e-05]
[1738699186850,1.68321875,98864.0,98788.0,0.08078646]
[1738699186851,0.0089,98841.0,98788.0,0.08078646]
[1738699187038,0.26304306,98841.0,98812.0,0.08078646]
[1738699187241,0.26304306,98841.0,98800.0,0.08078646]
[1738699187242,0.11128506,98841.0,98808.0,0.202412]
[1738699187361,0.12279306,98841.0,98823.0,0.151785]
[1738699187563,0.011508,98841.0,98827.0,0.202372]
[1738699187772,0.0044,98855.0,98827.0,0.202372]
[1738699187977,0.26788214,98870.0,98842.0,0.404686]
[1738699188180,0.0775,98927.0,98893.0,0.151679]
[1738699188436,0.31523914,98920.0,98862.0,0.01]
[1738699188764,0.31523914,98920.0,98840.0,0.39834624]
[1738699188956,0.31523914,98920.0,98848.0,0.20233]
[1738699189163,0.31523914,98920.0,98840.0,0.39834624]
[1738699189164,0.31523914,98900.0,98868.0,0.08078646]
[1738699189418,0.31523914,98880.0,98868.0,0.08078646]
[1738699189657,0.10828462,98899.0,98868.0,0.08078646]
[1738699189878,0.10238506,98901.0,98869.0,0.023]
[1738699190113,0.0807,98915.0,98868.0,0.08078646]
[1738699190308,0.151669,98900.0,98881.0,0.08078646]
[1738699190511,0.10238506,98899.0,98881.0,0.08078646]
[1738699191117,0.202236,98895.0,98881.0,0.08078646]
[1738699191270,0.151695,98883.0,98881.0,0.08078646]
[1738699191476,0.10238506,98882.0,98881.0,0.08078646]
[1738699191676,0.14801847,98882.0,98881.0,0.08078646]
[1738699191941,0.10238506,98882.0,98881.0,0.08078646]
[1738699192149,0.22848506,98882.0,98868.0,0.08078646]
[1738699192384,0.151715,98869.0,98868.0,0.08078646]
[1738699192833,0.151715,98869.0,98863.0,0.0001068]
[1738699192834,0.0556278,98869.0,98863.0,0.0001068]
[1738699193075,0.151723,98864.0,98863.0,0.0001068]
[1738699193295,1.651723,98864.0,98863.0,0.0001068]
[1738699194053,1.5,98864.0,98863.0,0.0001068]
[1738699194349,0.10238506,98864.0,98863.0,0.0001068]
[1738699194563,0.01,98905.0,98863.0,0.0001068]
[1738699194862,0.10238506,98877.0,98865.0,0.08078646]
[1738699195232,0.202277,98874.0,98863.0,0.0001068]
[1738699195382,0.10238506,98873.0,98864.0,0.08078646]
[1738699195541,0.151715,98870.0,98864.0,0.08078646]
[1738699195957,0.30466506,98873.0,98864.0,0.08078646]
[1738699195958,0.151718,98868.0,98864.0,0.08078646]
[1738699196158,0.10238506,98873.0,98864.0,0.08078646]
[1738699196359,0.151722,98865.0,98863.0,0.0001068]
[1738699196584,0.0802,98882.0,98865.0,0.202296]
[1738699196783,0.0786,98896.0,98863.0,0.0001068]
[1738699197002,0.0786,98896.0,98877.0,0.151703]
[1738699197211,0.01263836,98904.0,98877.0,0.151703]
[1738699197420,0.01263836,98904.0,98864.0,0.08078646]
[1738699197620,0.01263836,98904.0,98877.0,0.08078646]
[1738699197823,0.01263836,98904.0,98876.0,0.151704]
[1738699198219,0.151664,98903.0,98876.0,0.151704]
[1738699198478,0.01263836,98904.0,98877.0,0.1851752]
[1738699198634,0.10676,98932.0,98877.0,0.1851752]
[1738699198635,0.04156088,98926.0,98877.0,0.2081752]
[1738699198810,0.202188,98918.0,98877.0,0.12738874]
[1738699199121,0.04156088,98926.0,98877.0,0.12738874]
[1738699199343,0.202209,98908.0,98877.0,0.10438874]
[1738699199526,0.04156088,98926.0,98877.0,0.10438874]
[1738699199747,0.04178516,98878.0,98877.0,0.10438874]
[1738699199943,0.04178516,98878.0,98877.0,0.00200368]
[1738699200363,0.04178516,98878.0,98877.0,0.08279014]
[1738699200575,0.01,98939.0,98877.0,0.27869014]
[1738699200775,0.10238506,98922.0,98900.0,0.31523914]
[1738699200975,0.10238506,98922.0,98877.0,0.28869014]
[1738699200976,0.10238506,98922.0,98890.0,0.352244]
[1738699201180,0.10238506,98922.0,98897.0,0.08078646]
[1738699201642,0.151651,98911.0,98897.0,0.08078646]
[1738699201800,0.151651,98911.0,98877.0,0.12869014]
[1738699201801,0.10238506,98910.0,98898.0,0.08078646]
[1738699202144,0.0491,98943.0,98898.0,0.08078646]
[1738699202344,0.2105,98912.0,98877.0,0.00200368]
[1738699202564,0.15,98919.0,98877.0,0.00200368]
[1738699202565,1.5,98889.0,98877.0,0.00200368]
[1738699202702,0.151676,98895.0,98877.0,0.00200368]
[1738699202904,0.151702,98878.0,98877.0,0.00200368]
[1738699203107,1.651702,98878.0,98877.0,0.00200368]
[1738699203306,1.75419672,98878.0,98877.0,0.00200368]
[1738699203508,1.75419672,98878.0,98840.0,0.0001071]
[1738699203509,0.151723,98864.0,98840.0,0.0001071]
[1738699203742,0.45060806,98864.0,98840.0,0.0001071]
[1738699203998,0.30060806,98864.0,98842.0,0.08078646]
[1738699204449,1.80060806,98864.0,98842.0,0.08078646]
[1738699204782,1.60238506,98864.0,98842.0,0.08078646]
[1738699204986,1.60238506,98864.0,98852.0,0.202321]
[1738699204987,1.5,98864.0,98852.0,0.202321]
[1738699205188,1.5,98864.0,98849.0,0.202327]
[1738699205372,0.202258,98884.0,98850.0,0.202326]
[1738699205567,0.151698,98881.0,98843.0,0.023]
[1738699205788,0.01564,98891.0,98864.0,0.202298]
[1738699205789,0.202249,98888.0,98864.0,0.202298]
[1738699206028,0.10238506,98887.0,98856.0,0.202312]
[1738699206232,0.10238506,98887.0,98851.0,0.202323]
[1738699206233,0.151706,98876.0,98863.0,0.1518308]
[1738699206439,0.10238506,98887.0,98869.0,0.202287]
[1738699206672,0.0757,98917.0,98871.0,0.202283]
[1738699206805,0.10238506,98916.0,98875.0,0.15]
[1738699207022,0.00022428,98936.0,98880.0,0.023]
[1738699207265,0.00022428,98936.0,98889.0,0.15]
[1738699207439,0.00022428,98936.0,98891.0,0.173]
[1738699207643,0.00022428,98936.0,98895.0,0.173]
[1738699207861,0.151619,98932.0,98900.0,0.202224]
[1738699208041,0.00022428,98936.0,98934.0,0.151615]
[1738699208456,0.00022428,98936.0,98934.0,0.25400006]
[1738699208657,0.00022428,98936.0,98934.0,0.151615]
[1738699209224,0.00022428,98936.0,98935.0,0.10238506]
[1738699209426,0.00022428,98936.0,98935.0,0.12538506]
[1738699209635,0.00022533,98950.0,98949.0,0.151593]
[1738699209840,0.00022533,98950.0,98949.0,0.25397806]
[1738699210049,0.00022533,98950.0,98949.0,0.27697806]
[1738699210269,0.01592,99006.0,98976.0,0.151551]
[1738699210468,0.0792,99024.0,98976.0,0.25393606]
[1738699210669,0.20199,99015.0,98976.0,0.25393606]
[1738699210828,0.00121147,99014.0,98976.0,0.27693606]
[1738699211032,0.00121147,99023.0,98976.0,0.30574106]
[1738699211231,0.0452,99045.0,98997.0,0.151519]
[1738699211454,1.5,99044.0,98997.0,0.25390406]
[1738699211662,0.201951,99034.0,98997.0,0.25390406]
[1738699211836,0.00121147,99033.0,98997.0,0.10238506]
[1738699212085,0.00022533,99035.0,99004.0,0.202012]
[1738699212286,0.00022533,99035.0,99033.0,0.151463]
[1738699212494,0.00022533,99035.0,99034.0,0.00121149]
[1738699212679,0.00022533,99035.0,99034.0,0.06974761]
[1738699212882,0.00022533,99035.0,99034.0,0.04154823]
[1738699213082,0.00022533,99035.0,99034.0,0.04094261]
[1738699213283,0.15168633,99035.0,99034.0,0.04094261]
[1738699213491,0.15168633,99035.0,99004.0,0.08078646]
[1738699213492,1.50022533,99035.0,99004.0,0.08078646]
[1738699213694,1.50022533,99035.0,99018.0,0.08078646]
[1738699213887,1.50022533,99035.0,99019.0,0.10238506]
[1738699214119,0.00151462,99034.0,99033.0,0.151464]
[1738699214310,0.00022512,99049.0,99048.0,0.151441]
[1738699214517,0.00022512,99049.0,99048.0,0.301441]
[1738699214937,0.00022512,99049.0,99048.0,0.40382606]
[1738699215385,1.5,99092.0,99048.0,0.10238506]
[1738699215386,0.08078646,99091.0,99048.0,0.10238506]
[1738699215600,0.201838,99089.0,99052.0,0.10238506]
[1738699215799,0.10389913,99088.0,99053.0,0.10238506]
[1738699216019,0.151414,99066.0,99031.0,0.08078646]
[1738699216235,0.10389913,99088.0,99052.0,0.08078646]
[1738699216236,0.403684,99087.0,99052.0,0.08078646]
[1738699216438,1.5,99070.0,99044.0,0.151447]
[1738699216646,0.00151427,99069.0,99047.0,0.151441]
[1738699216852,0.00151427,99085.0,99034.0,0.20195]
[1738699217073,0.151414,99066.0,99035.0,0.10299064]
[1738699217283,0.10389933,99065.0,99031.0,0.08078646]
[1738699217490,0.15145,99043.0,99035.0,0.040399]
[1738699217695,0.10389933,99065.0,98978.0,0.0776]
[1738699217696,0.151467,99032.0,98978.0,0.0776]
[1738699217907,0.0015147,99031.0,99024.0,0.040404]
[1738699218132,0.31523914,99070.0,99005.0,0.10299167]
[1738699218337,0.31523914,99070.0,99014.0,0.08078646]
[1738699218338,0.14820363,99068.0,99014.0,0.08078646]
[1738699218560,0.10389972,99068.0,99015.0,0.10299119]
[1738699218762,0.10389972,99068.0,99017.0,0.201985]
[1738699219011,0.10389972,99068.0,99029.0,0.20196]
[1738699219232,0.201883,99067.0,99030.0,0.10299102]
[1738699219395,0.201883,99067.0,99019.0,0.08078646]
[1738699219396,0.151446,99045.0,99029.0,0.15147]
[1738699219628,0.151452,99042.0,99020.0,0.151484]
[1738699219834,0.15146,99036.0,99020.0,0.151483]
[1738699220095,0.15146,99036.0,99019.0,0.08078646]
[1738699220096,0.00151473,99041.0,99033.0,0.151464]
[1738699220297,0.08078646,99084.0,99034.0,0.10299117]
[1738699220426,0.08078646,99074.0,99034.0,0.00060611]
[1738699220817,0.151431,99055.0,99022.0,0.201975]
[1738699221032,0.10238506,99073.0,99035.0,0.08078646]
[1738699221260,0.00151429,99072.0,99046.0,0.201925]
[1738699221479,0.077,99087.0,99036.0,0.10238506]
[1738699221706,0.0015143,99082.0,99038.0,0.201942]
[1738699221910,0.20188,99069.0,99035.0,0.15146]
[1738699222139,0.10238506,99066.0,99024.0,0.08078646]
[1738699222342,0.023,99060.0,99009.0,0.202]
[1738699222553,0.15148,99023.0,99009.0,0.1515]
[1738699222761,0.151492,99015.0,99004.0,0.08078646]
[1738699222998,0.201981,99019.0,99004.0,0.08078646]
[1738699223205,0.0753,99038.0,99004.0,0.08078646]
[1738699223425,0.00151496,99037.0,99005.0,0.10238506]
[1738699223635,1.5,99037.0,99005.0,0.1029919]
[1738699223843,0.201903,99058.0,99005.0,0.1029919]
[1738699223844,0.35188,99069.0,99016.0,0.201987]
[1738699224055,0.10238506,99036.0,98984.0,0.202051]
[1738699224269,1.50151501,99035.0,98997.0,0.08078646]
[1738699224484,0.151484,99021.0,99007.0,0.151503]
[1738699224751,0.1039001,99020.0,98981.0,0.202058]
[1738699224962,0.023,99019.0,98974.0,0.202073]
[1738699225185,1.60238506,99018.0,99001.0,0.151512]
[1738699225399,0.00151515,99017.0,98973.0,0.08892671]
[1738699225618,0.10238506,99016.0,98982.0,0.08078646]
[1738699225824,0.10238506,99016.0,98973.0,0.08892671]
[1738699225825,0.0788,99014.0,98973.0,0.08892671]
[1738699226030,0.151535,98987.0,98975.0,0.151551]
[1738699226238,0.00151546,99009.0,98987.0,0.151533]
[1738699226439,0.151509,99004.0,98974.0,0.151554]
[1738699226642,0.151513,99002.0,98990.0,0.151529]
[1738699226849,0.00151531,99001.0,98975.0,0.202071]
[1738699227051,0.00151533,99000.0,98976.0,0.10238506]
[1738699227253,0.00151502,99013.0,98977.0,0.00060709]
[1738699227514,0.202008,99006.0,98973.0,0.08892671]
[1738699227714,0.01609191,99025.0,98973.0,0.08892671]
[1738699227715,0.202012,99004.0,98973.0,0.19131177]
[1738699227919,0.10390039,99003.0,98974.0,0.202073]
[1738699228123,0.202018,99001.0,98963.0,0.40419]
[1738699228360,0.31523914,98990.0,98941.0,0.202139]
[1738699228592,0.151566,98967.0,98938.0,0.202146]
[1738699228797,0.151579,98958.0,98945.0,0.151597]
[1738699229013,0.00151589,98957.0,98942.0,0.202138]
[1738699229215,0.10238506,98967.0,98942.0,0.202138]
[1738699229216,0.151577,98960.0,98942.0,0.202138]
[1738699229334,0.00151595,98959.0,98947.0,0.151595]
[1738699229542,0.00151595,98966.0,98921.0,0.20218]
[1738699229754,0.08078646,99007.0,98935.0,0.08078646]
[1738699229958,0.10238506,99003.0,98985.0,0.202048]
[1738699230222,0.00151538,99002.0,98941.0,0.15]
[1738699230384,0.00151535,99001.0,98949.0,0.15]
[1738699230594,0.00151537,99005.0,98950.0,0.00060777]
[1738699230804,0.00151537,99005.0,98950.0,0.04680777]
[1738699231047,0.00151523,99020.0,98959.0,0.10238506]
[1738699231272,0.08078646,98993.0,98976.0,0.00022407]
[1738699231473,0.202016,99002.0,98976.0,0.00022407]
[1738699231474,0.202038,98991.0,98976.0,0.00022407]
[1738699231682,0.10390061,98990.0,98976.0,0.00022407]
[1738699231877,0.202042,98989.0,98976.0,0.00022407]
[1738699232133,0.15155,98977.0,98976.0,0.00022407]
[1738699232334,0.25393506,98977.0,98976.0,0.00022407]
[1738699232559,0.202043,98989.0,98976.0,0.00022407]
[1738699232771,0.31523914,99010.0,98976.0,0.00022407]
[1738699232980,0.151538,98985.0,98976.0,0.00022407]
[1738699233183,0.00151559,98984.0,98976.0,0.00022407]
[1738699233393,0.202035,98993.0,98976.0,0.00022407]
[1738699233394,0.151536,98987.0,98976.0,0.00022407]
[1738699233603,0.20205,98985.0,98976.0,0.00022407]
[1738699233811,0.00151559,98984.0,98976.0,0.00022407]
[1738699234017,1.5,99008.0,98976.0,0.00022407]
[1738699234226,0.151504,99007.0,98995.0,0.151521]
[1738699234430,0.00151526,99007.0,98979.0,0.00060744]
[1738699234642,0.250059,99030.0,98980.0,0.10238506]
[1738699234854,0.151494,99014.0,98995.0,0.151522]
[1738699235059,0.00151509,99013.0,98980.0,0.10238506]
[1738699235270,0.10390015,99013.0,98976.0,0.00022407]
[1738699235477,0.151549,98978.0,98976.0,0.00022407]
[1738699235684,0.00151566,98977.0,98976.0,0.00022407]
[1738699235886,0.00151571,98977.0,98976.0,0.00022407]
[1738699236098,0.151549,98978.0,98976.0,0.00022407]
[1738699236312,0.00151556,98977.0,98976.0,0.00022407]
[1738699236732,0.15148,99023.0,99010.0,0.151498]
[1738699236944,0.00151496,99022.0,98980.0,0.15]
[1738699237144,0.151488,99018.0,98982.0,0.15]
[1738699237324,0.0805,99031.0,98991.0,0.08078646]
[1738699237556,0.078,99053.0,98992.0,0.10299202]
[1738699237764,0.16839473,99049.0,98992.0,0.10299202]
[1738699237965,0.00151477,99048.0,98995.0,0.10238506]
[1738699238178,0.10238506,99047.0,98996.0,0.00060656]
[1738699238382,0.00151478,99046.0,99016.0,0.151489]
[1738699238628,0.31523914,99030.0,98999.0,0.151516]
[1738699238826,0.31523914,99030.0,98991.0,0.08078646]
[1738699238827,0.15,99028.0,98991.0,0.08078646]
[1738699239037,0.15,99028.0,99001.0,0.08078646]
[1738699239038,0.151512,99002.0,99001.0,0.08078646]
[1738699239241,0.10238506,99027.0,98991.0,0.08078646]
[1738699239449,0.31523914,99050.0,98992.0,0.10299241]
[1738699239669,0.201922,99048.0,98992.0,0.10299241]
[1738699239874,0.151478,99024.0,99015.0,0.151491]
[1738699240121,0.0015148,99045.0,99001.0,0.08078646]
[1738699240321,0.0015148,99045.0,99002.0,0.10299168]
[1738699240533,0.078,99053.0,99038.0,0.151456]
[1738699240737,0.151451,99042.0,99031.0,0.201955]
[1738699240945,0.151441,99049.0,98989.0,0.01]
[1738699241158,0.0811,99069.0,99038.0,0.201941]
[1738699241370,0.0811,99069.0,99011.0,0.08078646]
[1738699241371,0.151441,99048.0,99026.0,0.201966]
[1738699241581,0.201926,99046.0,99013.0,0.08078646]
[1738699241783,0.0015146,99045.0,99024.0,0.08078646]
[1738699242020,0.10238506,99068.0,99025.0,0.10299098]
[1738699242225,0.20340044,99066.0,99033.0,0.151464]
[1738699242490,0.201929,99045.0,99034.0,0.10238506]
[1738699242694,0.00151445,99044.0,99001.0,0.08078646]
[1738699242874,0.201967,99026.0,99013.0,0.18317152]
[1738699243114,0.10238506,99043.0,99001.0,0.08078646]
[1738699243325,0.201978,99021.0,99002.0,0.10238506]
[1738699243535,1.5,99020.0,99002.0,0.10238506]
[1738699243773,0.151486,99019.0,99002.0,0.10238506]
[1738699243993,1.5,99020.0,99002.0,0.10238506]
[1738699244197,1.5,99020.0,98974.0,0.00022407]
[1738699244198,0.1038999,99018.0,98978.0,0.202065]
[1738699244387,0.0485,99033.0,98974.0,0.00022407]
[1738699244388,0.151501,99009.0,98981.0,0.08078646]
[1738699244642,0.15151,99004.0,98982.0,0.10299228]
[1738699244847,0.201983,99019.0,98993.0,0.151524]
[1738699245078,0.00151509,99018.0,98993.0,0.10238506]
[1738699245303,1.5,99018.0,98994.0,0.151523]
[1738699245517,1.5,99018.0,98995.0,0.00060722]
[1738699245746,1.5,99018.0,99003.0,0.15151]
[1738699245971,1.5,99018.0,98996.0,0.10238506]
[1738699245972,0.00151486,99017.0,99004.0,0.10238506]
[1738699246183,0.151479,99024.0,99011.0,0.151497]
[1738699246388,0.08078646,99032.0,99004.0,0.10238506]
[1738699246562,0.201944,99038.0,99014.0,0.20199]
[1738699246774,1.5,99051.0,99015.0,0.30498058]
[1738699246986,0.0478,99074.0,99018.0,0.10238506]
[1738699246987,0.201891,99064.0,99018.0,0.10238506]
[1738699247185,0.0776,99070.0,99022.0,0.25238506]
[1738699247399,0.201873,99072.0,99051.0,0.201915]
[1738699247553,0.201854,99082.0,99052.0,0.00060557]
[1738699247757,0.0015142,99081.0,99022.0,0.00060544]
[1738699247963,0.201873,99072.0,99036.0,0.10238506]
[1738699248166,0.31523914,99070.0,99011.0,0.201996]
[1738699248371,0.403762,99068.0,99013.0,0.201993]
[1738699248571,0.151453,99041.0,99028.0,0.151471]
[1738699248795,0.10238506,99067.0,99017.0,0.151489]
[1738699248996,0.08078646,99061.0,99021.0,0.151482]
[1738699249170,0.00151464,99060.0,99022.0,0.10299126]
[1738699249372,0.08078646,99073.0,99030.0,0.201957]
[1738699249690,0.151438,99051.0,99038.0,0.151457]
[1738699250080,0.00151444,99072.0,99012.0,0.201993]
[1738699250283,0.31523914,99070.0,99013.0,0.10299129]
[1738699250476,0.151447,99045.0,99027.0,0.151473]
[1738699250677,0.00151449,99068.0,99028.0,0.10238506]
[1738699250817,0.201918,99050.0,99016.0,0.00060602]
[1738699251023,0.201892,99063.0,99017.0,0.10238506]
[1738699251224,0.201892,99063.0,99018.0,0.00060603]
[1738699251225,0.18468601,99062.0,99018.0,0.00060603]
[1738699251425,0.201897,99060.0,99021.0,0.201977]
[1738699251717,0.00151452,99059.0,99023.0,0.151479]
[1738699251920,0.201883,99067.0,99024.0,0.10299092]
[1738699252056,0.08078646,99057.0,99024.0,0.10299092]
[1738699252257,0.15144,99049.0,99025.0,0.151476]
[1738699252476,0.20342239,99055.0,99038.0,0.151456]
[1738699252655,0.201873,99072.0,99040.0,0.201938]
[1738699252865,1.50151436,99071.0,99041.0,0.10238506]
[1738699253457,1.50151436,99071.0,99013.0,0.201992]
[1738699253458,0.10238506,99070.0,99001.0,0.15]
[1738699253667,0.201881,99068.0,99031.0,0.151467]
[1738699253908,0.08078646,99059.0,99018.0,0.10238506]
[1738699254107,0.151476,99026.0,99018.0,0.10238506]
[1738699254317,0.151491,99016.0,99005.0,0.151506]
[1738699254529,0.10238506,99048.0,99006.0,0.10299185]
[1738699254728,0.151472,99028.0,99018.0,0.151486]
[1738699254932,0.08078646,99036.0,99018.0,0.10238506]
[1738699254933,0.151468,99031.0,99018.0,0.10238506]
[1738699255146,0.0751,99069.0,99019.0,0.10238506]
[1738699255349,0.08078646,99036.0,99019.0,0.10238506]
[1738699255502,0.151462,99035.0,99019.0,0.10238506]
[1738699255702,1.5,99049.0,99020.0,0.00060641]
[1738699255900,0.201888,99065.0,99021.0,0.10238506]
[1738699256114,0.201856,99081.0,99024.0,0.10238506]
[1738699256376,0.151418,99064.0,99052.0,0.151435]
[1738699256565,0.08078646,99058.0,99032.0,0.0006055]
[1738699256767,0.00151431,99072.0,99033.0,0.10299059]
[1738699257120,0.08078646,99063.0,99033.0,0.10299059]
[1738699257236,0.00151432,99062.0,99033.0,0.10238506]
[1738699257680,0.201895,99061.0,99033.0,0.10238506]
[1738699257884,0.00151447,99060.0,99033.0,0.10238506]
[1738699258103,0.151448,99044.0,99033.0,0.25384806]
[1738699258310,0.00151447,99047.0,99033.0,0.10238506]
[1738699258488,0.151439,99050.0,99039.0,0.151454]
[1738699258720,0.201895,99061.0,99040.0,0.10238506]
[1738699258900,1.5,99062.0,99043.0,0.151448]
[1738699259100,0.00151434,99061.0,99040.0,0.10238506]
[1738699259545,0.00151434,99061.0,99001.0,0.00849265]
[1738699259546,0.151453,99040.0,99001.0,0.151513]
[1738699259735,0.31523914,99050.0,98985.0,0.0465]
[1738699259736,0.10389999,99039.0,99011.0,0.08892671]
[1738699259933,0.00151489,99038.0,99011.0,0.08892671]
[1738699260138,1.5,99031.0,99011.0,0.08892671]
[1738699260291,1.5,99031.0,99024.0,0.151477]
[1738699260496,0.08078646,99029.0,99011.0,0.08892671]
[1738699260803,0.151495,99013.0,99011.0,0.08892671]
[1738699261002,0.00151494,99012.0,99011.0,0.08892671]
[1738699261203,0.00151502,99012.0,99011.0,0.08892671]
[1738699261406,0.151495,99013.0,99011.0,0.08892671]
[1738699261611,0.201978,99021.0,99011.0,0.08892671]